fUST/lending_fUST_20240320
["ID","MTS","AMOUNT","RATE_DAILY","PERIOD"]
[319711643,1710937842071,-500.0,0.00031571,2]
[319711644,1710937842080,-1109.19,0.00031571,2]
[319711645,1710937842089,-500.0,0.00031571,2]
[319711646,1710937842098,-533.07,0.00031571,2]
[319711647,1710937842108,-500.0,0.00031571,2]
[319711648,1710937842117,-162.65178912,0.00031571,2]
[319711649,1710937842126,-500.0,0.00031571,2]
[319711650,1710937842135,-500.0,0.00031571,2]
[319711651,1710937842145,-728.69,0.00031571,2]
[319711652,1710937842154,-500.0,0.00031571,2]
[319711653,1710937842163,-379.46526937,0.00031571,2]
[319711654,1710937842171,-500.0,0.00031571,2]
[319711655,1710937842181,-500.0,0.00031571,2]
[319711656,1710937842190,-500.0,0.00031571,2]
[319711657,1710937842200,-500.0,0.00031571,2]
[319711658,1710937842208,-500.0,0.00031571,2]
[319711659,1710937842218,-500.0,0.00031571,2]
[319711660,1710937842226,-500.0,0.00031571,2]
[319711661,1710937842236,-500.0,0.00031571,2]
[319711662,1710937842245,-500.0,0.00031571,2]
[319711663,1710937842254,-500.0,0.00031571,2]
[319711664,1710937842264,-1223.03,0.00031571,2]
[319711665,1710937842273,-500.0,0.00031571,2]
[319711666,1710937842282,-500.0,0.00031571,2]
[319711667,1710937842291,-500.0,0.00031571,2]
[319711668,1710937842302,-500.0,0.00031571,2]
[319711669,1710937842311,-616.99840725,0.00031571,2]
[319711670,1710937842319,-1075.76,0.00031571,2]
[319711671,1710937842328,-500.0,0.00031571,2]
[319711672,1710937842337,-500.0,0.00031571,2]
[319711673,1710937842347,-500.0,0.00031571,2]
[319711674,1710937842356,-173.76177274,0.00031571,2]
[319711675,1710937842365,-631.69473383,0.00031571,2]
[319711676,1710937842374,-500.0,0.00031571,2]
[319711677,1710937842383,-500.0,0.00031571,2]
[319711678,1710937842392,-500.0,0.00031571,2]
[319711679,1710937842401,-680.42,0.00031571,2]
[319711680,1710937842411,-500.0,0.00031571,2]
[319711681,1710937842421,-634.59987507,0.00031571,2]
[319711682,1710937842431,-500.0,0.00031571,2]
[319711683,1710937842517,-500.0,0.00031571,2]
[319711684,1710937842527,-500.0,0.00031571,2]
[319711685,1710937842536,-500.0,0.00031571,2]
[319711686,1710937842545,-500.0,0.00031571,2]
[319711687,1710937842556,-627.4186077,0.00031571,2]
[319711688,1710937842565,-617.31181432,0.00031571,2]
[319711689,1710937842574,-500.0,0.00031571,2]
[319711690,1710937842584,-399.65281204,0.00031571,2]
[319711691,1710937842593,-500.0,0.00031571,2]
[319711692,1710937842602,-500.0,0.00031571,2]
[319711693,1710937842612,-500.0,0.00031571,2]
[319711694,1710937842621,-919.62711952,0.00031572,4]
[319711695,1710937842630,-1054.92782536,0.00031572,4]
[319711696,1710937842640,-304.58060715,0.00031572,4]
[319711697,1710937842649,-3815.0,0.00031572,2]
[319711698,1710937842658,-500.0,0.00031572,2]
[319711699,1710937842668,-500.0,0.00031572,2]
[319711700,1710937842678,-694.14,0.00031572,2]
[319711701,1710937842687,-694.14,0.00031572,2]
[319711702,1710937842697,-694.14,0.00031572,2]
[319711703,1710937842706,-694.14,0.00031572,2]
[319711704,1710937842716,-500.0,0.00031572,2]
[319711705,1710937842726,-500.0,0.00031572,2]
[319711706,1710937842735,-155.01584127,0.00031573,4]
[319711707,1710937842744,-500.0,0.00031573,2]
[319711708,1710937842754,-194.78213072,0.00031573,2]
[319711709,1710937842763,-500.0,0.00031573,2]
[319711711,1710937842773,-500.0,0.00031573,2]
[319711712,1710937842782,-502.54594405,0.00031573,2]
[319711713,1710937842791,-500.0,0.00031573,2]
[319711714,1710937842803,-500.0,0.00031573,2]
[319711715,1710937842812,-500.0,0.00031573,2]
[319711716,1710937842821,-500.0,0.00031573,2]
[319711717,1710937842830,-500.0,0.00031573,2]
[319711718,1710937842840,-500.0,0.00031573,2]
[319711719,1710937842849,-1348.64,0.00031573,2]
[319711720,1710937842859,-1348.64,0.00031573,2]
[319711721,1710937842869,-1348.64,0.00031573,2]
[319711722,1710937842879,-500.0,0.00031573,2]
[319711723,1710937842889,-500.0,0.00031573,2]
[319711725,1710937842899,-518.93219178,0.00031573,2]
[319711727,1710937842908,-500.0,0.00031573,2]
[319711729,1710937842917,-576.9,0.00031573,2]
[319711730,1710937842928,-4168.7,0.00031573,2]
[319711731,1710937842938,-500.0,0.00031573,2]
[319711732,1710937842949,-500.0,0.00031573,2]
[319711733,1710937842960,-500.0,0.00031573,2]
[319711735,1710937842970,-500.0,0.00031573,2]
[319711737,1710937842980,-500.0,0.00031573,2]
[319711739,1710937842989,-500.0,0.00031573,2]
[319711741,1710937842999,-500.0,0.00031573,2]
[319711744,1710937843009,-500.0,0.00031573,2]
[319711746,1710937843018,-500.0,0.00031573,2]
[319711748,1710937843029,-340.46604157,0.00031573,2]
[319711750,1710937843040,-500.0,0.00031573,2]
[319711752,1710937843053,-500.0,0.00031573,2]
[319711754,1710937843062,-338.35738438,0.00031573,2]
[319711756,1710937843071,-2965.11,0.00031573,2]
[319711758,1710937843080,-665.16,0.00031573,2]
[319711760,1710937843089,-779.2,0.00031573,2]
[319711762,1710937843098,-500.0,0.00031573,2]
[319711764,1710937843106,-4166.66,0.00031573,2]
[319711766,1710937843115,-694.14,0.00031573,2]
[319711768,1710937843124,-694.14,0.00031573,2]
[319711769,1710937843133,-694.14,0.00031573,2]
[319711771,1710937843142,-500.0,0.00031573,2]
[319711774,1710937843152,-500.0,0.00031573,2]
[319711777,1710937843161,-500.0,0.00031573,2]
[319711779,1710937843170,-604.14724391,0.00031573,2]
[319711782,1710937843179,-500.0,0.00031573,2]
[319711783,1710937843188,-512.90032282,0.00031573,2]
[319711785,1710937843197,-500.0,0.00031573,2]
[319711787,1710937843206,-456.1690021,0.00031573,2]
[319711789,1710937843214,-96662.976741,0.00031574,2]
[319711791,1710937843224,-1348.64,0.00031574,2]
[319711793,1710937843233,-1348.64,0.00031574,2]
[319711795,1710937843242,-1348.64,0.00031574,2]
[319711796,1710937843252,-1348.64,0.00031574,2]
[319711798,1710937843261,-1348.64,0.00031574,2]
[319711800,1710937843270,-1348.64,0.00031574,2]
[319711802,1710937843279,-1348.64,0.00031574,2]
[319711804,1710937843288,-500.0,0.00031574,2]
[319711806,1710937843300,-500.0,0.00031574,2]
[319711808,1710937843309,-500.0,0.00031574,2]
[319711810,1710937843318,-500.0,0.00031574,2]
[319711811,1710937843327,-500.0,0.00031574,2]
[319711813,1710937843336,-500.0,0.00031574,2]
[319711815,1710937843345,-500.0,0.00031574,2]
[319711816,1710937843354,-500.0,0.00031575,2]
[319711817,1710937843364,-315.06216528,0.00031575,2]
[319711818,1710937843373,-694.14,0.00031575,2]
[319711820,1710937843383,-500.0,0.00031575,2]
[319711821,1710937843392,-500.0,0.00031575,2]
[319711823,1710937843403,-500.0,0.00031575,2]
[319711825,1710937843413,-523.28309686,0.00031576,4]
[319711827,1710937843423,-1348.64,0.00031576,2]
[319711829,1710937843433,-1348.64,0.00031576,2]
[319711830,1710937843443,-1348.64,0.00031576,2]
[319711831,1710937843452,-500.0,0.00031576,2]
[319711832,1710937843461,-500.0,0.00031576,2]
[319711833,1710937843471,-500.0,0.00031576,2]
[319711834,1710937843481,-694.14,0.00031576,2]
[319711836,1710937843490,-500.0,0.00031576,2]
[319711838,1710937843499,-309.70578029,0.00031577,4]
[319711840,1710937843508,-1348.64,0.00031577,2]
[319711841,1710937843517,-1348.64,0.00031577,2]
[319711843,1710937843526,-1348.64,0.00031577,2]
[319711845,1710937843535,-500.0,0.00031577,2]
[319711846,1710937843544,-585.71,0.00031577,2]
[319711848,1710937843558,-694.14,0.00031577,2]
[319711850,1710937843567,-694.14,0.00031577,2]
[319711852,1710937843577,-694.14,0.00031577,2]
[319711853,1710937843586,-500.0,0.00031577,2]
[319711854,1710937843595,-500.0,0.00031577,2]
[319711855,1710937843604,-500.0,0.00031577,2]
[319711856,1710937843613,-500.0,0.00031577,2]
[319711858,1710937843623,-500.0,0.00031577,2]
[319711860,1710937843632,-409.25842123,0.00031577,2]
[319711861,1710937843641,-500.0,0.00031578,2]
[319711863,1710937843651,-500.0,0.00031578,2]
[319711865,1710937843661,-500.0,0.00031578,2]
[319711866,1710937843670,-500.0,0.00031578,2]
[319711867,1710937843679,-500.82006554,0.00031578,2]
[319711868,1710937843689,-500.0,0.00031578,2]
[319711869,1710937843698,-2371.34,0.00031578,2]
[319711870,1710937843708,-500.0,0.00031578,2]
[319711871,1710937843717,-755.01,0.00031578,2]
[319711872,1710937843727,-500.0,0.00031578,2]
[319711873,1710937843736,-500.0,0.00031578,2]
[319711874,1710937843745,-500.0,0.00031578,2]
[319711875,1710937843755,-500.0,0.00031578,2]
[319711876,1710937843764,-500.0,0.00031578,2]
[319711877,1710937843773,-500.0,0.00031578,2]
[319711878,1710937843782,-500.0,0.00031578,2]
[319711879,1710937843792,-500.0,0.00031578,2]
[319711880,1710937843805,-500.0,0.00031578,2]
[319711881,1710937843815,-209.76040813,0.00031578,2]
[319711882,1710937843824,-500.0,0.00031578,2]
[319711883,1710937843833,-502.09528569,0.00031578,2]
[319711884,1710937843843,-500.0,0.00031578,2]
[319711885,1710937843852,-500.0,0.00031578,2]
[319711886,1710937843861,-500.0,0.00031578,2]
[319711887,1710937843870,-510.19,0.00031578,2]
[319711888,1710937843879,-500.0,0.00031578,2]
[319711889,1710937843888,-500.0,0.00031578,2]
[319711890,1710937843898,-501.20079915,0.00031578,2]
[319711891,1710937843907,-500.0,0.00031578,2]
[319711892,1710937843916,-500.0,0.00031578,2]
[319711893,1710937843927,-359.68769652,0.00031578,2]
[319711894,1710937843936,-500.0,0.00031578,2]
[319711895,1710937843945,-500.0,0.00031578,2]
[319711896,1710937844029,-500.0,0.00031578,2]
[319711897,1710937844038,-318.90505635,0.00031578,2]
[319711898,1710937844050,-477.05994199,0.00031578,2]
[319711899,1710937844060,-500.0,0.00031578,2]
[319711900,1710937844070,-500.0,0.00031578,2]
[319711901,1710937844079,-500.0,0.00031578,2]
[319711902,1710937844087,-500.0,0.00031578,2]
[319711903,1710937844097,-500.0,0.00031578,2]
[319711904,1710937844106,-500.0,0.00031578,2]
[319711905,1710937844115,-500.0,0.00031578,2]
[319711906,1710937844124,-500.0,0.00031578,2]
[319711907,1710937844134,-500.0,0.00031578,2]
[319711908,1710937844143,-500.0,0.00031578,2]
[319711909,1710937844152,-500.0,0.00031578,2]
[319711910,1710937844161,-625.20407615,0.00031578,2]
[319711911,1710937844170,-586.39,0.00031578,2]
[319711912,1710937844179,-500.0,0.00031578,2]
[319711913,1710937844189,-500.0,0.00031578,2]
[319711914,1710937844198,-573.86370958,0.00031578,2]
[319711915,1710937844206,-500.0,0.00031578,2]
[319711916,1710937844216,-500.0,0.00031578,2]
[319711917,1710937844225,-500.0,0.00031578,2]
[319711918,1710937844234,-500.0,0.00031578,2]
[319711919,1710937844243,-500.0,0.00031578,2]
[319711920,1710937844253,-500.0,0.00031578,2]
[319711921,1710937844262,-500.0,0.00031578,2]
[319711922,1710937844271,-569.01,0.00031578,2]
[319711923,1710937844280,-500.0,0.00031578,2]
[319711924,1710937844289,-500.0,0.00031578,2]
[319711925,1710937844301,-500.0,0.00031578,2]
[319711926,1710937844311,-500.0,0.00031578,2]
[319711927,1710937844320,-1366.38,0.00031578,2]
[319711928,1710937844329,-639.67,0.00031578,2]
[319711929,1710937844339,-500.0,0.00031578,2]
[319711930,1710937844348,-500.0,0.00031578,2]
[319711931,1710937844357,-500.0,0.00031578,2]
[319711932,1710937844367,-500.0,0.00031578,2]
[319711933,1710937844376,-500.0,0.00031578,2]
[319711934,1710937844385,-500.0,0.00031578,2]
[319711935,1710937844394,-500.0,0.00031578,2]
[319711936,1710937844403,-500.0,0.00031578,2]
[319711937,1710937844412,-500.92232013,0.00031578,2]
[319711938,1710937844422,-501.73262812,0.00031578,2]
[319711939,1710937844430,-392.3193869,0.00031578,2]
[319711940,1710937844439,-932.48,0.00031578,2]
[319711941,1710937844448,-155.59205742,0.00031578,2]
[319711942,1710937844457,-500.0,0.00031578,2]
[319711943,1710937844466,-770.91,0.00031578,2]
[319711944,1710937844476,-500.0,0.00031578,2]
[319711945,1710937844485,-562.11597627,0.00031578,2]
[319711946,1710937844494,-500.0,0.00031578,2]
[319711947,1710937844503,-500.0,0.00031578,2]
[319711948,1710937844512,-500.0,0.00031578,2]
[319711949,1710937844521,-500.0,0.00031578,5]
[319711950,1710937844530,-500.0,0.00031578,2]
[319711951,1710937844539,-500.0,0.00031578,2]
[319711952,1710937844552,-500.0,0.00031578,2]
[319711953,1710937844561,-500.4767428,0.00031578,2]
[319711954,1710937844571,-500.71072317,0.00031578,2]
[319711955,1710937844580,-500.0,0.00031578,2]
[319711956,1710937844589,-584.04508829,0.00031578,2]
[319711957,1710937844598,-500.82405211,0.00031578,2]
[319711958,1710937844607,-500.0,0.00031578,2]
[319711959,1710937844617,-1000.17,0.00031578,2]
[319711960,1710937844627,-500.0,0.00031578,2]
[319711961,1710937844636,-500.0,0.00031578,2]
[319711962,1710937844645,-500.0,0.00031578,2]
[319711963,1710937844654,-646.17,0.00031578,2]
[319711964,1710937844664,-500.0,0.00031578,2]
[319711965,1710937844673,-500.0,0.00031578,2]
[319711966,1710937844682,-500.0,0.00031578,2]
[319711967,1710937844691,-500.0,0.00031578,2]
[319711968,1710937844700,-806.28,0.00031578,2]
[319711969,1710937844711,-500.0,0.00031578,2]
[319711970,1710937844723,-500.0,0.00031578,2]
[319711971,1710937844732,-500.30866736,0.00031578,2]
[319711972,1710937844741,-163.7661083,0.00031578,2]
[319711973,1710937844750,-500.0,0.00031578,2]
[319711974,1710937844760,-500.0,0.00031578,2]
[319711975,1710937844769,-500.0,0.00031578,2]
[319711976,1710937844779,-553.88,0.00031578,2]
[319711977,1710937844789,-500.0,0.00031578,2]
[319711978,1710937844802,-503.50924274,0.00031578,2]
[319711979,1710937844812,-361.23504704,0.00031578,2]
[319711980,1710937844821,-1348.64,0.00031629,2]
[319711981,1710937844830,-694.14,0.00031629,2]
[319711982,1710937844839,-1348.64,0.0003163,2]
[319711983,1710937844849,-1348.64,0.0003163,2]
[319711984,1710937844858,-1348.64,0.0003163,2]
[319711985,1710937844867,-1348.64,0.0003163,2]
[319711986,1710937844876,-1348.64,0.0003163,2]
[319711987,1710937844888,-1348.64,0.0003163,2]
[319711988,1710937844896,-1348.65466831,0.0003163,2]
[319711989,1710937844906,-694.14,0.0003163,2]
[319711990,1710937844915,-694.14,0.0003163,2]
[319711991,1710937844924,-694.14,0.0003163,2]
[319711992,1710937844933,-694.14,0.0003163,2]
[319711993,1710937844943,-694.14,0.0003163,2]
[319711994,1710937844952,-694.14,0.0003163,2]
[319711995,1710937844962,-694.14,0.0003163,2]
[319711996,1710937844973,-694.35694209,0.0003163,2]
[319711997,1710937844982,-3148.79744482,0.0003173,4]
[319711998,1710937844992,-179.93362187,0.00031734,4]
[319711999,1710937845001,-500.0,0.00031741,2]
[319712000,1710937845011,-500.0,0.00031741,2]
[319712001,1710937845020,-558.06,0.00031742,2]
[319712002,1710937845030,-500.0,0.00031742,2]
[319712003,1710937845039,-3314.0,0.00031742,2]
[319712004,1710937845053,-3141.67,0.00031742,2]
[319712005,1710937845063,-984.85,0.00031742,2]
[319712006,1710937845073,-500.0,0.00031742,2]
[319712007,1710937845082,-39210.67,0.00031742,2]
[319712008,1710937845092,-2501.83,0.00031742,2]
[319712009,1710937845101,-500.0,0.00031743,2]
[319712010,1710937845111,-405.00494432,0.00031837,4]
[319712011,1710937845120,-322.57582013,0.00031837,2]
[319712012,1710937845131,-3453.36951941,0.00031839,4]
[319712013,1710937845141,-3757.41,0.00031841,2]
[319712014,1710937845151,-500.0,0.00031841,2]
[319712015,1710937845160,-2245.36,0.00031841,2]
[319712016,1710937845170,-1980.19,0.00031841,2]
[319712017,1710937845180,-3202.49,0.00031841,2]
[319712018,1710937845190,-12350.32,0.00031841,2]
[319712019,1710937845200,-1724.39,0.00031841,2]
[319712020,1710937845209,-565.02,0.00031841,2]
[319712021,1710937845219,-500.0,0.00031841,2]
[319712022,1710937845228,-5209.66,0.00031841,2]
[319712023,1710937845238,-500.0,0.00031841,2]
[319712024,1710937845248,-2061.43,0.00031841,2]
[319712025,1710937845258,-500.0,0.00031841,2]
[319712026,1710937845268,-500.0,0.00031841,2]
[319712027,1710937845277,-500.0,0.00031841,2]
[319712028,1710937845287,-500.0,0.00031841,2]
[319712029,1710937845297,-896.93,0.00031841,2]
[319712030,1710937845310,-500.0,0.00031841,2]
[319712031,1710937845320,-500.0,0.00031841,2]
[319712032,1710937845330,-34704.47,0.00031841,2]
[319712033,1710937845339,-6885.87,0.00031841,2]
[319712034,1710937845423,-500.0,0.00031841,2]
[319712035,1710937845433,-487.04806181,0.00031841,2]
[319712036,1710937845443,-4047.29388808,0.00031843,4]
[319712037,1710937845452,-500.0,0.00031843,2]
[319712038,1710937845461,-500.0,0.00031843,2]
[319712039,1710937845471,-500.0,0.00031843,2]
[319712040,1710937845480,-506.96,0.00031843,2]
[319712041,1710937845489,-500.0,0.00031843,2]
[319712042,1710937845498,-665.5,0.00031843,2]
[319712043,1710937845507,-557.59,0.00031843,2]
[319712044,1710937845516,-604.45,0.00031843,2]
[319712045,1710937845525,-500.0,0.00031843,2]
[319712046,1710937845534,-826.7,0.00031843,2]
[319712047,1710937845543,-500.0,0.00031843,2]
[319712048,1710937845555,-501.12382844,0.00031843,2]
[319712049,1710937845564,-500.0,0.00031843,2]
[319712050,1710937845573,-500.88,0.00031843,2]
[319712051,1710937845582,-979.6,0.00031843,2]
[319712052,1710937845591,-500.0,0.00031843,2]
[319712053,1710937845600,-500.0,0.00031843,2]
[319712054,1710937845609,-500.0,0.00031843,2]
[319712055,1710937845618,-1437.52,0.00031843,2]
[319712056,1710937845628,-501.66255192,0.00031843,2]
[319712057,1710937845637,-474.59042809,0.00031843,2]
[319712058,1710937845646,-611.05,0.00031843,2]
[319712059,1710937845655,-500.0,0.00031843,2]
[319712060,1710937845664,-500.0,0.00031843,2]
[319712061,1710937845673,-8325.38,0.00031843,2]
[319712062,1710937845682,-2778.2,0.00031843,2]
[319712063,1710937845690,-500.0,0.00031843,2]
[319712064,1710937845700,-1111.42,0.00031843,2]
[319712065,1710937845709,-500.0,0.00031843,2]
[319712066,1710937845718,-500.0,0.00031843,2]
[319712067,1710937845727,-500.0,0.00031843,2]
[319712068,1710937845736,-153.34257304,0.00031843,2]
[319712069,1710937845745,-1155.02,0.00031843,2]
[319712070,1710937845754,-500.0,0.00031843,2]
[319712071,1710937845763,-500.0,0.00031843,2]
[319712072,1710937845772,-3076.45,0.00031843,2]
[319712073,1710937845781,-5048.6,0.00031843,2]
[319712074,1710937845790,-500.0,0.00031843,2]
[319712075,1710937845803,-1109.31,0.00031843,2]
[319712077,1710937845812,-317.49940684,0.00031843,2]
[319712079,1710937845821,-500.0,0.00031843,2]
[319712081,1710937845831,-500.0,0.00031843,2]
[319712083,1710937845840,-500.0,0.00031843,2]
[319712085,1710937845849,-599.74,0.00031843,2]
[319712087,1710937845858,-2843.79,0.00031843,2]
[319712089,1710937845867,-500.0,0.00031843,2]
[319712091,1710937845876,-500.0,0.00031843,2]
[319712092,1710937845885,-3034.83,0.00031843,2]
[319712093,1710937845893,-500.0,0.00031843,2]
[319712094,1710937845903,-500.0,0.00031843,2]
[319712096,1710937845912,-500.0,0.00031843,2]
[319712098,1710937845921,-1511.8,0.00031843,2]
[319712100,1710937845932,-1254.46,0.00031843,2]
[319712101,1710937845941,-603.25152225,0.00031843,2]
[319712102,1710937845950,-500.0,0.00031843,2]
[319712103,1710937845960,-500.0,0.00031843,2]
[319712105,1710937845969,-500.0,0.00031843,2]
[319712106,1710937845978,-4334.6,0.00031843,2]
[319712107,1710937845987,-500.0,0.00031843,2]
[319712108,1710937845997,-799.65,0.00031843,2]
[319712109,1710937846007,-500.0,0.00031843,2]
[319712110,1710937846016,-500.0,0.00031843,2]
[319712111,1710937846025,-46894.07,0.00031844,2]
[319712112,1710937846036,-500.0,0.00031844,2]
[319712114,1710937846045,-154.95050007,0.00031845,4]
[319712116,1710937846056,-316.99666353,0.00031845,4]
[319712118,1710937846065,-500.0,0.00031845,2]
[319712120,1710937846074,-500.0,0.00031845,2]
[319712122,1710937846083,-500.0,0.00031845,2]
[319712124,1710937846092,-629.28539354,0.00031845,2]
[319712125,1710937846101,-500.0,0.00031845,2]
[319712126,1710937846110,-500.0,0.00031845,2]
[319712127,1710937846119,-526.87612181,0.00031845,2]
[319712128,1710937846129,-501.12406937,0.00031845,2]
[319712129,1710937846137,-500.0,0.00031845,2]
[319712131,1710937846146,-329.14995118,0.00031845,2]
[319712132,1710937846156,-501.83,0.00031845,2]
[319712134,1710937846165,-500.0,0.00031845,2]
[319712135,1710937846175,-500.0,0.00031845,2]
[319712136,1710937846184,-500.0,0.00031845,2]
[319712137,1710937846193,-500.0,0.00031845,2]
[319712139,1710937846202,-500.0,0.00031845,2]
[319712140,1710937846211,-500.0,0.00031845,2]
[319712141,1710937846220,-500.0,0.00031845,2]
[319712142,1710937846229,-500.0,0.00031845,2]
[319712143,1710937846238,-500.0,0.00031845,2]
[319712144,1710937846246,-500.0,0.00031845,2]
[319712145,1710937846255,-500.0,0.00031845,2]
[319712146,1710937846265,-500.0,0.00031845,2]
[319712147,1710937846274,-500.0,0.00031845,2]
[319712148,1710937846283,-500.0,0.00031845,2]
[319712149,1710937846292,-500.0,0.00031845,2]
[319712150,1710937846303,-531.43334666,0.00031845,2]
[319712151,1710937846311,-500.0,0.00031845,2]
[319712152,1710937846320,-500.0,0.00031845,2]
[319712153,1710937846328,-500.0,0.00031845,2]
[319712154,1710937846338,-500.0,0.00031845,2]
[319712155,1710937846349,-500.0,0.00031845,2]
[319712156,1710937846358,-608.96,0.00031845,2]
[319712157,1710937846368,-611.03,0.00031845,2]
[319712158,1710937846380,-500.0,0.00031845,2]
[319712159,1710937846391,-500.0,0.00031845,2]
[319712160,1710937846400,-500.0,0.00031845,2]
[319712161,1710937846409,-500.0,0.00031845,2]
[319712162,1710937846418,-1541.93,0.00031845,2]
[319712163,1710937846427,-500.0,0.00031845,2]
[319712164,1710937846436,-702.93,0.00031845,2]
[319712165,1710937846450,-500.0,0.00031845,2]
[319712166,1710937846459,-500.0,0.00031845,2]
[319712167,1710937846468,-500.0,0.00031845,2]
[319712168,1710937846477,-151.0,0.00031845,2]
[319712169,1710937846486,-429.70613393,0.00031845,2]
[319712170,1710937846495,-500.0,0.00031845,2]
[319712171,1710937846505,-500.0,0.00031845,2]
[319712172,1710937846513,-1138.09,0.00031845,2]
[319712173,1710937846523,-500.0,0.00031845,2]
[319712174,1710937846532,-601.27,0.00031845,2]
[319712175,1710937846541,-500.0,0.00031845,2]
[319712176,1710937846552,-500.0,0.00031845,2]
[319712178,1710937846561,-596.87,0.00031845,2]
[319712179,1710937846570,-500.0,0.00031845,2]
[319712180,1710937846580,-500.0,0.00031845,2]
[319712181,1710937846589,-438.94419607,0.00031845,2]
[319712182,1710937846599,-500.0,0.00031845,2]
[319712183,1710937846608,-500.0,0.00031845,2]
[319712187,1710937846685,-500.0,0.00031845,2]
[319712188,1710937846695,-477.97560021,0.00031845,2]
[319712190,1710937846704,-500.0,0.00031845,2]
[319712191,1710937846713,-500.0,0.00031845,2]
[319712192,1710937846722,-412.34157042,0.00031845,2]
[319712194,1710937846731,-500.0,0.00031845,2]
[319712195,1710937846740,-1109.19,0.00031845,2]
[319712197,1710937846749,-500.0,0.00031845,2]
[319712198,1710937846758,-533.07,0.00031845,2]
[319712199,1710937846767,-500.0,0.00031845,2]
[319712200,1710937846776,-500.0,0.00031845,2]
[319712201,1710937846785,-500.0,0.00031845,2]
[319712202,1710937846794,-728.69,0.00031845,2]
[319712203,1710937846805,-399.90351883,0.00031845,2]
[319712204,1710937846813,-500.0,0.00031845,2]
[319712205,1710937846822,-500.0,0.00031845,2]
[319712206,1710937846831,-500.0,0.00031845,2]
[319712207,1710937846841,-1223.03,0.00031845,2]
[319712208,1710937846850,-500.0,0.00031845,2]
[319712209,1710937846859,-500.0,0.00031845,2]
[319712210,1710937846868,-500.0,0.00031845,2]
[319712211,1710937846877,-500.0,0.00031845,2]
[319712212,1710937846886,-1075.76,0.00031845,2]
[319712213,1710937846895,-500.0,0.00031845,2]
[319712214,1710937846905,-500.0,0.00031845,2]
[319712215,1710937846914,-500.0,0.00031845,2]
[319712216,1710937846923,-500.0,0.00031845,2]
[319712217,1710937846934,-500.0,0.00031845,2]
[319712219,1710937846944,-500.0,0.00031845,2]
[319712220,1710937846956,-680.42,0.00031845,2]
[319712222,1710937846968,-500.0,0.00031845,2]
[319712224,1710937846977,-500.0,0.00031845,2]
[319712225,1710937846986,-500.0,0.00031845,2]
[319712227,1710937846996,-500.0,0.00031845,2]
[319712229,1710937847004,-500.0,0.00031845,2]
[319712230,1710937847014,-500.0,0.00031845,2]
[319712232,1710937847023,-500.0,0.00031845,2]
[319712233,1710937847033,-645.67966858,0.00031845,2]
[319712234,1710937847043,-500.0,0.00031845,2]
[319712235,1710937847053,-500.0,0.00031845,2]
[319712236,1710937847062,-500.0,0.00031847,2]
[319712237,1710937847071,-500.0,0.00031847,2]
[319712238,1710937847080,-649.99269632,0.00031847,2]